bitfinex/quotes_ETHUSD_20251111
["timestamp","ask_amount","ask_price","bid_price","bid_amount"]
[1762824755947,3.22491991,3617.3,3616.1,0.96478205]
[1762824756156,0.001,3617.3,3616.1,0.4649]
[1762824756317,0.001,3617.3,3617.2,0.1422]
[1762824756515,0.001,3617.3,3617.2,0.64208205]
[1762824756713,0.001,3617.3,3616.6,0.1422]
[1762824757048,0.4604,3617.3,3616.5,0.49988205]
[1762824757250,2.76472249,3617.0,3616.6,0.1422]
[1762824757558,0.001,3617.3,3616.0,0.0177]
[1762824757559,2.76486362,3616.9,3616.3,0.64208205]
[1762824757722,0.001,3617.3,3616.3,0.1422]
[1762824758123,2.76494133,3616.8,3616.5,0.49988205]
[1762824758950,0.001,3617.3,3616.5,0.49988205]
[1762824759112,2.7649198,3616.8,3616.5,0.49988205]
[1762824759319,0.001,3617.3,3616.5,0.49988205]
[1762824759650,2.7647839,3617.0,3616.5,0.49988205]
[1762824759951,0.001,3617.3,3616.5,0.49988205]
[1762824760246,2.76494285,3616.8,3616.5,0.49988205]
[1762824760457,0.001,3617.3,3616.5,0.49988205]
[1762824760851,0.001,3617.3,3616.5,3.26497887]
[1762824761030,0.001,3617.3,3616.5,0.49988205]
[1762824761227,0.001,3617.5,3617.2,2.76456928]
[1762824763636,0.001,3618.1,3618.0,2.35809405]
[1762824764018,0.001,3618.1,3618.0,5.12205203]
[1762824764210,0.001,3618.1,3618.0,2.35809405]
[1762824764452,0.001,3618.1,3618.0,1.89879405]
[1762824765134,0.001,3618.1,3618.0,1.91989405]
[1762824765722,0.001,3618.1,3618.0,4.68385203]
[1762824765962,0.001,3618.1,3618.0,2.37529405]
[1762824766349,0.001,3618.1,3618.0,1.875412]
[1762824766556,0.001,3618.1,3618.0,1.91989405]
[1762824767062,0.001,3618.1,3618.0,2.37919405]
[1762824767370,0.001,3618.1,3618.0,5.14315203]
[1762824767729,0.001,3618.1,3618.0,1.259712]
[1762824768035,0.001,3618.1,3617.2,0.4593]
[1762824768036,0.9336,3618.1,3617.2,0.49988205]
[1762824768236,0.3263,3617.9,3617.1,0.63908205]
[1762824768455,0.3263,3617.9,3616.9,0.49988205]
[1762824768629,0.001,3618.1,3617.8,0.2749]
[1762824768836,0.001,3618.1,3618.0,0.4563]
[1762824769030,0.001,3618.1,3617.8,0.1391]
[1762824769227,0.001,3618.1,3618.0,3.26384003]
[1762824769432,0.001,3618.1,3618.0,4.52355203]
[1762824769974,0.001,3618.1,3618.0,4.98035203]
[1762824770275,0.001,3618.1,3618.0,1.81069405]
[1762824770558,0.001,3618.1,3618.0,1.75959405]
[1762824770915,0.001,3618.1,3618.0,4.90685203]
[1762824771120,0.001,3618.1,3618.0,2.14289405]
[1762824771321,0.001,3618.1,3618.0,4.90685203]
[1762824771732,0.001,3618.1,3618.0,2.14289405]
[1762824772147,0.001,3618.1,3618.0,4.90685203]
[1762824772543,0.001,3618.1,3618.0,4.73255203]
[1762824772744,0.001,3618.1,3618.0,1.96859405]
[1762824773147,0.001,3618.1,3618.0,4.73255203]
[1762824773551,0.001,3618.1,3618.0,5.19185203]
[1762824773756,0.001,3618.1,3617.7,0.49988205]
[1762824773757,2.76409864,3617.9,3617.7,0.49988205]
[1762824773922,2.76424068,3617.7,3617.3,0.49988205]
[1762824774122,2.76424068,3617.7,3617.1,0.63908205]
[1762824774618,2.76440894,3617.5,3617.1,0.49988205]
[1762824776335,2.76403438,3617.9,3617.1,0.63908205]
[1762824776552,0.001,3618.1,3617.1,0.628]
[1762824776753,0.001,3618.1,3618.0,0.49988205]
[1762824777845,0.001,3618.1,3616.0,0.05]
[1762824777846,2.76395798,3618.0,3616.0,0.05]
[1762824778020,2.76439307,3617.5,3617.0,0.49988205]
[1762824778220,2.76428486,3617.6,3617.0,0.49988205]
[1762824778561,2.76469597,3617.1,3616.1,0.4888]
[1762824778719,0.4594,3617.6,3617.1,0.002]
[1762824778925,2.7645557,3617.3,3617.1,0.002]
[1762824779236,2.76456928,3617.2,3617.1,0.002]
[1762824779440,3.23516928,3617.2,3617.1,0.002]
[1762824779649,3.69456928,3617.2,3617.1,0.002]
[1762824780226,0.93,3617.2,3617.1,0.002]
[1762824780427,0.4594,3617.6,3617.1,0.002]
[1762824780726,0.73873948,3618.8,3617.2,0.1392]
[1762824780727,0.001,3618.1,3617.2,0.1392]
[1762824780963,0.001,3618.1,3617.1,0.002]
[1762824780964,0.4594,3618.0,3617.1,0.002]
[1762824781152,0.1885,3617.9,3617.1,0.63958205]
[1762824781357,2.76431594,3617.6,3617.1,0.50188205]
[1762824781540,2.76456928,3617.2,3617.1,0.002]
[1762824781865,0.001,3618.1,3617.7,0.49988205]
[1762824782069,0.001,3618.1,3618.0,2.76395798]
[1762824782269,0.001,3618.1,3618.0,3.26384003]
[1762824782459,0.001,3618.1,3618.0,3.75264003]
[1762824783477,0.4604,3618.1,3617.1,0.002]
[1762824783642,2.76435801,3617.5,3617.1,0.002]
[1762824783840,2.76418804,3617.7,3617.1,0.002]
[1762824784067,2.76456928,3617.2,3617.1,0.002]
[1762824784485,3.22396928,3617.2,3617.1,0.002]
[1762824784777,0.4594,3617.2,3617.1,0.002]
[1762824785069,0.4594,3617.6,3617.1,0.002]
[1762824785243,2.76456928,3617.2,3617.1,0.002]
[1762824785940,0.4594,3617.6,3617.1,0.002]
[1762824786147,2.76456928,3617.2,3617.1,0.002]
[1762824787062,0.4594,3617.6,3617.1,0.002]
[1762824787289,2.76456928,3617.2,3617.1,0.002]
[1762824787454,0.4594,3617.6,3617.1,0.002]
[1762824787647,2.76395798,3618.0,3617.1,0.2706]
[1762824787872,0.001,3618.1,3617.4,1.75959405]
[1762824788150,0.001,3618.1,3618.0,0.49988205]
[1762824788791,0.4604,3618.1,3617.1,0.002]
[1762824788951,0.1885,3617.7,3617.1,0.002]
[1762824789151,2.76456079,3617.3,3617.1,0.002]
[1762824789559,0.1885,3617.7,3617.1,0.002]
[1762824789887,2.76456928,3617.2,3617.1,0.002]
[1762824790104,0.405504,3617.5,3617.1,0.002]
[1762824790307,2.76449987,3617.3,3617.1,0.002]
[1762824790449,0.864904,3617.5,3617.1,0.002]
[1762824790650,2.76456928,3617.2,3617.1,0.002]
[1762824790964,3.22387446,3617.4,3617.1,0.002]
[1762824790965,0.4594,3617.4,3617.1,0.002]
[1762824791180,2.76456928,3617.2,3617.1,0.002]
[1762824791575,0.1885,3617.7,3617.1,0.002]
[1762824791778,2.76428041,3617.6,3617.1,0.002]
[1762824791979,0.1885,3617.7,3617.1,0.002]
[1762824792157,0.1885,3617.9,3617.2,0.64058205]
[1762824792357,2.76443024,3617.4,3617.2,0.64058205]
[1762824792552,2.76424062,3617.7,3617.2,0.49988205]
[1762824792773,0.6479,3617.9,3617.1,0.002]
[1762824792976,2.76411078,3617.8,3617.1,0.002]
[1762824793293,0.4594,3617.8,3617.1,0.002]
[1762824793459,3.23516928,3617.2,3617.1,0.002]
[1762824794190,2.76452075,3617.3,3617.1,0.002]
[1762824794387,0.4594,3617.8,3617.1,0.002]
[1762824794586,2.7642719,3617.6,3617.2,0.49988205]
[1762824794764,3.23516928,3617.2,3617.1,0.002]
[1762824795165,3.69456928,3617.2,3617.1,0.002]
[1762824795769,0.93,3617.2,3617.1,0.002]
[1762824796079,0.1885,3617.9,3617.1,0.002]
[1762824796080,2.76425462,3617.7,3617.1,0.1427]
[1762824796402,2.76427452,3617.6,3617.1,0.1427]
[1762824796570,0.1895,3617.9,3617.3,0.49988205]
[1762824796971,2.9535496,3617.9,3617.3,0.49988205]
[1762824797187,0.001,3617.9,3617.7,0.49988205]
[1762824797393,0.001,3617.9,3617.8,3.26399283]
[1762824797578,0.001,3617.9,3617.8,3.73399283]
[1762824797769,0.001,3617.9,3617.8,4.99370483]
[1762824798161,0.001,3617.9,3617.8,0.99752315]
[1762824798364,0.6601,3617.9,3617.7,0.49988205]
[1762824798690,0.7949,3617.8,3617.1,0.002]
[1762824798892,3.23376928,3617.2,3617.1,0.002]
[1762824799361,3.69316928,3617.2,3617.1,0.002]
[1762824799797,0.4594,3617.8,3617.1,0.002]
[1762824800105,2.7645447,3617.3,3617.1,0.002]
[1762824800271,2.76456928,3617.2,3617.1,0.002]
[1762824800895,0.4594,3617.6,3617.1,0.002]
[1762824801074,2.76456928,3617.2,3617.1,0.002]
[1762824801796,3.69456928,3617.2,3617.1,0.002]
[1762824802085,4.10007328,3617.2,3617.1,0.002]
[1762824802984,6.05278528,3617.2,3617.1,0.002]
[1762824803183,2.76515641,3616.5,3615.4,0.49988205]
[1762824803393,0.405504,3616.7,3615.4,0.49988205]
[1762824803394,2.7657079,3615.8,3615.4,0.49988205]
[1762824803606,2.76580136,3615.6,3615.1,1.383212]
[1762824803823,2.76580136,3615.6,3615.2,0.49988205]
[1762824804118,0.1885,3615.9,3615.2,0.49988205]
[1762824804318,0.1885,3615.9,3615.3,2.76600078]
[1762824804491,2.76550229,3616.0,3615.2,3.26595935]
[1762824804693,2.76571184,3615.8,3615.2,0.49988205]
[1762824804910,0.4594,3616.3,3615.2,0.49988205]
[1762824804911,2.76572702,3615.7,3615.2,0.49988205]
[1762824805419,2.76606305,3615.3,3615.0,0.62248205]
[1762824805620,2.76596686,3615.4,3614.9,0.49988205]
[1762824806237,0.491,3615.7,3614.8,0.49988205]
[1762824806390,0.491,3615.7,3614.5,0.1226]
[1762824806590,0.1946,3616.4,3615.6,0.6043]
[1762824806832,0.1946,3616.4,3615.8,0.49988205]
[1762824807192,0.1885,3616.8,3615.7,0.4758]
[1762824807395,0.6856,3617.4,3616.5,0.49988205]
[1762824807621,0.1895,3617.9,3617.2,0.49988205]
[1762824807998,0.1895,3617.9,3617.6,2.7642636]
[1762824808585,0.1895,3617.9,3617.6,3.26414565]
[1762824808922,0.1895,3617.9,3617.7,0.49988205]
[1762824809124,0.1895,3617.9,3617.1,0.1407]
[1762824809324,0.1895,3617.9,3617.7,3.26405678]
[1762824810517,0.001,3617.9,3617.7,3.26405678]
[1762824810902,0.001,3617.9,3617.8,2.76411078]
[1762824811237,0.001,3617.9,3617.7,3.2640487]
[1762824811654,0.001,3617.9,3617.8,3.24491078]
[1762824811803,0.001,3617.9,3617.8,3.74479283]
[1762824812366,0.001,3617.9,3617.8,5.28594593]
[1762824813148,0.001,3617.9,3617.8,5.25830483]
[1762824813722,0.001,3617.9,3617.8,5.00450483]
[1762824813925,0.001,3617.9,3617.8,1.75959405]
[1762824814451,1.1769,3617.9,3617.1,0.1407]
[1762824814650,1.1769,3617.9,3617.3,2.76445493]
[1762824814830,0.6859,3617.9,3617.3,3.26433698]
[1762824815027,0.6859,3617.9,3617.2,2.7645569]
[1762824815355,0.6859,3617.9,3617.3,3.26436413]
[1762824815860,0.6859,3617.9,3617.3,0.49988205]
[1762824816180,3.17007328,3617.2,3617.1,0.002]
[1762824816315,3.65807328,3617.2,3617.1,0.002]
[1762824816644,3.65807328,3617.2,3616.7,0.002]
[1762824816645,2.76487502,3616.8,3616.7,0.002]
[1762824816953,3.43067902,3616.8,3616.7,0.002]
[1762824817154,3.92167902,3616.8,3616.7,0.002]
[1762824817539,5.18139102,3616.8,3616.7,0.002]
[1762824818821,2.416516,3616.8,3616.7,0.002]
[1762824819019,3.92167902,3616.8,3616.7,0.002]
[1762824819419,0.1946,3616.9,3616.7,0.002]
[1762824819650,2.76475693,3617.0,3616.7,0.002]
[1762824819972,2.76466675,3617.1,3616.7,0.002]
[1762824820135,0.1956,3617.9,3617.1,0.1407]
[1762824820323,0.1956,3617.9,3616.9,3.26464384]
[1762824820324,2.76412628,3617.8,3616.9,3.26464384]
[1762824820530,2.76418822,3617.7,3616.9,0.49988205]
[1762824820847,0.001,3617.9,3617.6,0.49988205]
[1762824821048,2.76435691,3617.5,3617.1,0.49988205]
[1762824821229,2.76428085,3617.6,3616.9,0.49988205]
[1762824821619,2.76428085,3617.6,3616.7,0.002]
[1762824821620,2.76441643,3617.4,3616.7,0.50188205]
[1762824821819,0.491,3617.5,3616.7,0.002]
[1762824822057,2.95947502,3616.8,3616.7,0.002]
[1762824822268,3.44977502,3616.8,3616.7,0.002]
[1762824822446,3.94077502,3616.8,3616.7,0.002]
[1762824822765,4.34627902,3616.8,3616.7,0.002]
[1762824823122,3.81387923,3617.9,3616.7,0.002]
[1762824823325,0.1946,3617.1,3616.7,0.002]
[1762824823748,3.25517502,3616.8,3616.7,0.002]
[1762824824149,3.74617502,3616.8,3616.7,0.002]
[1762824824349,4.15167902,3616.8,3616.7,0.002]
[1762824824549,5.41139102,3616.8,3616.7,0.002]
[1762824824862,2.646516,3616.8,3616.7,0.002]
[1762824825160,0.1946,3617.1,3616.7,0.002]
[1762824825337,0.6856,3617.1,3616.7,0.002]
[1762824825524,2.76487502,3616.8,3616.7,0.002]
[1762824825727,3.25517502,3616.8,3616.7,0.002]
[1762824825927,3.74617502,3616.8,3616.7,0.002]
[1762824826123,4.15167902,3616.8,3616.7,0.002]
[1762824826723,0.1946,3617.1,3616.7,0.002]
[1762824826923,0.1956,3617.9,3616.8,0.49988205]
[1762824827178,2.76411568,3617.8,3616.9,0.02764798]
[1762824827383,3.45066759,3617.9,3616.9,2.79243578]
[1762824827528,0.6866,3617.9,3616.9,2.79243578]
[1762824828034,2.76431743,3617.6,3616.9,0.02764798]
[1762824828235,0.1956,3617.9,3616.7,0.4778]
[1762824828462,2.95964007,3617.9,3616.9,3.26466053]
[1762824828662,0.1956,3617.9,3616.7,1.737512]
[1762824828857,2.76504618,3617.9,3617.2,3.26443908]
[1762824829054,2.76504618,3617.9,3617.3,0.1407]
[1762824829429,0.001,3617.9,3617.3,0.1407]
[1762824829737,0.001,3617.9,3617.6,0.49988205]
[1762824830428,0.001,3617.9,3617.0,0.49988205]
[1762824830429,0.6866,3617.9,3617.0,0.49988205]
[1762824830624,0.6866,3617.9,3616.8,0.49988205]
[1762824830830,2.76441917,3617.4,3616.8,0.49988205]
[1762824831427,2.76442891,3617.4,3616.8,0.49988205]
[1762824831832,2.76450832,3617.3,3616.7,0.002]
[1762824832035,2.76450832,3617.3,3616.7,1.261712]
[1762824832381,2.76450443,3617.3,3616.7,0.002]
[1762824832885,2.76479139,3617.0,3616.7,0.002]
[1762824833029,2.76487502,3616.8,3616.7,0.002]
[1762824833384,3.44977502,3616.8,3616.7,0.002]
[1762824833673,3.94077502,3616.8,3616.7,0.002]
[1762824835275,4.34627902,3616.8,3616.7,0.002]
[1762824836767,5.60599102,3616.8,3616.7,0.002]
[1762824837071,6.19982495,3616.8,3616.7,0.002]
[1762824837238,6.1998156,3616.8,3616.7,0.002]
[1762824837433,5.60599102,3616.8,3616.7,0.002]
[1762824838162,6.19968076,3616.8,3616.7,0.002]
[1762824838564,5.60599102,3616.8,3616.7,0.002]
[1762824838763,6.1995209,3616.8,3616.7,0.002]
[1762824839063,5.60599102,3616.8,3616.7,0.002]
[1762824839268,4.34627902,3616.8,3616.7,0.002]
[1762824839864,6.34,3617.0,3616.7,0.002]
[1762824840366,2.76478821,3617.0,3616.7,0.002]
[1762824841175,2.76487502,3616.8,3616.7,0.002]
[1762824841329,3.24597502,3616.8,3616.7,0.002]
[1762824841537,0.001,3617.3,3616.7,0.002]
[1762824841737,0.001,3617.3,3617.2,0.1407]
[1762824842241,0.001,3617.3,3616.9,0.1407]
[1762824843437,2.76487502,3616.8,3616.7,0.002]
[1762824843636,3.65147902,3616.8,3616.7,0.002]
[1762824843839,3.65147902,3616.8,3614.9,0.4512]
[1762824843840,3.17068484,3616.4,3614.9,0.4512]
[1762824844148,3.17068484,3616.4,3615.0,1.259712]
[1762824844351,3.66538484,3616.4,3614.6,1.259712]
[1762824844544,5.61809684,3616.4,3614.6,2.76653397]
[1762824844744,5.61809684,3616.4,3614.7,2.76646907]
[1762824844745,6.21280704,3616.4,3614.7,2.76646907]
[1762824844945,6.21280704,3616.4,3614.5,0.1226]
[1762824844946,6.21280704,3616.4,3614.6,2.76654656]
[1762824845300,0.1869,3617.3,3616.3,0.50188205]
[1762824845439,0.001,3617.3,3616.5,0.49988205]
[1762824845635,0.405504,3617.2,3616.3,0.002]
[1762824845965,2.76479066,3617.0,3616.3,0.002]
[1762824846167,0.900204,3617.2,3616.3,0.002]
[1762824846371,2.76488254,3616.8,3616.3,0.002]
[1762824846570,0.405504,3617.0,3616.3,0.002]
[1762824846737,2.76510159,3616.6,3616.3,0.002]
[1762824846939,2.76518084,3616.4,3616.3,0.002]
[1762824850089,3.66538484,3616.4,3616.3,0.002]
[1762824850397,5.51969412,3616.4,3616.3,0.002]
[1762824852016,3.17068484,3616.4,3616.3,0.002]
[1762824852164,0.406504,3616.6,3616.3,0.002]
[1762824852575,2.76518084,3616.4,3616.3,0.002]
[1762824853697,3.66538484,3616.4,3616.3,0.002]
[1762824854214,0.405504,3616.4,3616.3,0.002]
[1762824854365,0.001,3616.6,3616.3,0.002]
[1762824854565,2.76518084,3616.4,3616.3,0.002]
[1762824854874,3.24628084,3616.4,3616.3,0.002]
[1762824855063,3.74098084,3616.4,3616.3,0.002]
[1762824855596,3.24628084,3616.4,3616.3,0.002]
[1762824856785,2.76518084,3616.4,3616.3,0.002]
[1762824857086,4.14648484,3616.4,3616.3,0.002]
[1762824857292,3.65178484,3616.4,3616.3,0.002]
[1762824857469,3.17068484,3616.4,3616.3,0.002]
[1762824857892,4.14648484,3616.4,3616.3,0.002]
[1762824858765,3.17068484,3616.4,3616.3,0.002]
[1762824858990,0.405504,3616.4,3616.3,0.002]
[1762824859396,3.17068484,3616.4,3616.3,0.002]
[1762824859713,0.001,3616.6,3616.3,0.002]
[1762824859915,2.76518084,3616.4,3616.3,0.002]
[1762824860621,0.001,3616.6,3616.3,0.4741]
[1762824860784,0.001,3616.6,3616.5,0.4721]
[1762824860971,0.001,3616.6,3616.5,0.97198205]
[1762824861173,0.001,3616.6,3616.5,1.42318205]
[1762824861486,0.001,3616.6,3616.5,0.9233]
[1762824862064,0.001,3616.6,3616.5,4.18828643]
[1762824862282,0.001,3616.6,3616.5,0.99963309]
[1762824862493,2.76518084,3616.4,3616.3,0.002]
[1762824862690,4.70249684,3616.4,3616.3,0.002]
[1762824862888,5.79260066,3616.4,3616.3,0.002]
[1762824864287,3.17129667,3615.6,3613.9,0.1407]
[1762824864486,6.39901249,3615.6,3614.1,0.1226]
[1762824864705,0.405504,3614.8,3613.6,0.002]
[1762824864994,0.405504,3614.8,3613.7,0.4512]
[1762824864995,0.405504,3614.6,3613.7,0.4512]
[1762824865183,0.405504,3614.7,3613.7,0.4512]
[1762824865647,2.76695874,3614.1,3613.6,0.002]
[1762824865822,2.76705502,3614.0,3613.6,0.002]
[1762824866050,0.692,3614.8,3613.6,0.002]
[1762824866051,0.405504,3614.3,3613.6,0.002]
[1762824866254,0.8779,3615.0,3613.9,0.49988205]
[1762824866419,2.76702885,3614.0,3613.6,0.002]
[1762824866620,2.76719861,3613.8,3613.6,0.002]
[1762824866833,0.1891,3614.3,3613.6,0.002]
[1762824867132,2.76724686,3613.7,3613.6,0.002]
[1762824867883,3.71284686,3613.7,3613.6,0.002]
[1762824868060,6.07006286,3613.7,3613.6,0.002]
[1762824869570,5.61946286,3613.7,3613.6,0.002]
[1762824869867,2.76861538,3612.0,3611.3,0.1407]
[1762824870051,0.405504,3613.0,3611.4,1.259712]
[1762824870052,0.1891,3612.4,3611.4,1.259712]
[1762824870238,2.76854536,3612.1,3611.3,2.90977866]
[1762824870471,0.405504,3612.3,3611.3,0.1407]
[1762824870671,2.76854603,3612.1,3611.3,0.1407]
[1762824870869,2.76831935,3612.3,3611.3,0.1407]
[1762824871053,2.76854226,3612.1,3611.3,2.91178199]
[1762824871374,0.405504,3613.1,3612.2,0.1255]
[1762824871662,0.1891,3613.2,3612.2,0.1255]
[1762824871864,0.405504,3612.9,3612.2,0.1255]
[1762824872071,0.692,3613.4,3612.2,0.1255]
[1762824872231,0.405504,3613.3,3612.2,0.62538205]
[1762824872431,2.76777265,3613.1,3612.4,0.49988205]
[1762824872783,0.405504,3613.3,3612.4,0.49988205]
[1762824872930,0.1891,3613.5,3612.3,0.4949]
[1762824873142,2.76748731,3613.4,3612.6,2.76802911]
[1762824873337,2.76776397,3613.1,3612.5,0.49988205]
[1762824873587,0.692,3613.7,3612.5,0.49988205]
[1762824873915,2.76795847,3612.8,3612.2,0.1255]
[1762824874085,2.76787675,3612.9,3612.2,0.1255]
[1762824874451,0.405504,3613.4,3612.4,2.76817166]
[1762824874655,0.405504,3613.4,3612.8,0.4915]
[1762824874953,2.76755526,3613.3,3612.8,0.4915]
[1762824875148,2.76769007,3613.2,3612.8,0.4915]
[1762824875504,2.76769007,3613.2,3612.3,0.49988205]
[1762824875505,0.405504,3613.2,3612.3,0.49988205]
[1762824875650,2.76814287,3612.6,3612.2,0.1255]
[1762824876316,2.76803101,3612.7,3612.2,0.1255]
[1762824876456,2.7679679,3612.8,3612.2,0.1255]
[1762824876798,2.76803125,3612.7,3612.2,0.1255]
[1762824876958,2.76785913,3613.0,3612.2,0.1255]
[1762824876959,0.405504,3613.0,3612.2,0.1255]
[1762824877315,2.76826728,3612.4,3611.7,2.76877108]
[1762824877534,2.76803348,3612.7,3611.1,2.76919965]
[1762824877535,2.76858143,3612.0,3611.1,2.76919965]
[1762824877652,2.76858143,3612.0,3611.2,0.49988205]
[1762824877653,2.76860514,3612.0,3611.2,0.49988205]
[1762824877853,0.405504,3612.5,3611.2,3.26903061]
[1762824878174,2.76860377,3612.0,3611.2,3.26903061]
[1762824878374,0.405504,3612.5,3611.2,0.49988205]
[1762824878578,2.76862282,3612.0,3611.2,2.76915108]
[1762824878791,0.405504,3612.3,3611.3,2.9117549]
[1762824878958,2.7684617,3612.2,3611.3,2.9117549]
[1762824879157,2.76878074,3611.7,3611.3,0.1427]
[1762824879461,2.76872615,3611.8,3611.3,0.1427]
[1762824879693,0.405504,3612.3,3611.3,0.1427]
[1762824879694,2.76881191,3611.7,3611.3,0.1427]
[1762824879856,2.76871373,3611.8,3611.3,0.1427]
[1762824880208,0.405504,3612.3,3611.3,0.1427]
[1762824880356,2.76867006,3611.9,3611.3,0.1427]
[1762824880557,0.405504,3612.3,3611.3,0.1427]
[1762824880892,5.11422524,3611.4,3611.3,0.002]
[1762824881119,5.61052524,3611.4,3611.3,0.002]
[1762824883127,2.76832316,3612.3,3611.3,0.002]
[1762824883128,0.7124516,3612.4,3611.3,0.4653]
[1762824883437,3.46034384,3612.3,3611.3,0.4653]
[1762824883639,1.1883,3612.3,3611.3,0.002]
[1762824883788,0.405504,3612.2,3611.3,0.002]
[1762824883987,2.76839599,3612.2,3611.3,0.002]
[1762824884207,2.76891772,3611.6,3611.3,0.002]
[1762824884407,0.692,3612.1,3611.3,0.002]
[1762824884882,2.76840849,3612.2,3611.4,3.26882155]
[1762824885123,2.76872163,3611.8,3611.3,0.002]
[1762824885325,0.692,3612.1,3611.3,0.5295729]
[1762824885534,0.6848,3613.2,3612.0,0.4633]
[1762824885683,0.692,3613.1,3612.0,0.4633]
[1762824885888,2.76815944,3612.6,3612.1,0.1255]
[1762824886404,0.692,3613.1,3612.1,0.1255]
[1762824886627,3.34882147,3613.0,3612.1,0.1255]
[1762824886811,0.58096481,3613.0,3612.1,0.1255]
[1762824887199,0.405504,3612.9,3612.1,0.1255]
[1762824887403,2.76817568,3612.5,3612.1,0.1255]
[1762824887930,1.84067681,3613.0,3612.1,0.1255]
[1762824887931,0.58096481,3613.0,3612.1,0.1255]
[1762824888131,0.58096481,3613.0,3611.3,0.4925]
[1762824888132,3.26415961,3612.9,3611.3,0.4925]
[1762824888340,0.405504,3612.7,3611.3,0.002]
[1762824888506,2.76887598,3611.6,3611.3,0.002]
[1762824888710,2.7689477,3611.5,3611.3,0.002]
[1762824889016,0.692,3612.1,3611.3,0.002]
[1762824889326,0.4963,3612.8,3611.3,0.02969085]
[1762824889544,1.448212,3613.2,3611.4,3.9524455]
[1762824889545,0.1885,3613.2,3611.4,3.9524455]
[1762824889698,2.76763236,3613.2,3612.5,2.7681658]
[1762824889895,0.693,3613.6,3613.1,0.1331]
[1762824890125,0.693,3613.6,3612.4,0.49988205]
[1762824890126,2.76747661,3613.4,3612.4,0.49988205]
[1762824890429,2.76747661,3613.4,3612.1,0.692]
[1762824890430,0.34604766,3613.4,3612.5,0.1331]
[1762824890653,1.03804766,3613.4,3612.5,0.1331]
[1762824890800,0.001,3613.6,3612.5,0.1331]
[1762824890999,0.692,3613.5,3612.5,0.1331]
[1762824891247,0.4973,3613.6,3612.5,0.1331]
[1762824891541,2.76769531,3613.2,3612.5,2.9012445]
[1762824891713,2.76791766,3612.9,3612.5,0.1331]
[1762824891897,2.76793376,3612.9,3612.5,0.1331]
[1762824892133,0.4963,3613.4,3612.5,0.1331]
[1762824892134,2.76777275,3613.1,3612.5,0.1331]
[1762824892435,0.4963,3613.4,3612.5,0.1331]
[1762824892635,2.7680663,3612.7,3612.5,0.1331]
[1762824892835,3.26383374,3613.4,3612.5,0.1331]
[1762824892836,2.76776695,3613.1,3612.5,0.1331]
[1762824893141,0.001,3613.6,3612.7,2.76795955]
[1762824893300,0.001,3613.6,3612.6,0.9538]
[1762824893301,0.001,3613.6,3613.5,0.4633]
[1762824893707,0.001,3613.6,3613.5,0.96318205]
[1762824893930,2.76834861,3613.6,3612.8,0.4905]
[1762824894139,0.57340265,3613.6,3612.2,0.4905]
[1762824894338,0.57340265,3613.6,3611.5,3.43425541]
[1762824894339,2.76834189,3613.6,3612.6,0.99038205]
[1762824894536,2.76834189,3613.6,3612.9,0.49988205]
[1762824894537,0.001,3613.6,3612.9,0.49988205]
[1762824894706,2.76746807,3613.5,3612.9,0.99038205]
[1762824894899,0.001,3613.6,3612.9,0.99038205]
[1762824895134,0.001,3613.6,3612.5,0.63298205]
[1762824895342,2.76784637,3613.0,3612.5,0.63298205]
[1762824895559,2.76802578,3612.7,3612.5,0.1331]
[1762824895722,2.76747661,3613.4,3612.5,0.1331]
[1762824895723,0.405504,3613.4,3612.5,0.1331]
[1762824895902,0.4992,3613.6,3612.7,0.49988205]
[1762824895903,0.001,3613.6,3612.7,0.49988205]
[1762824896103,2.7683988,3613.6,3613.0,0.49988205]
[1762824896338,0.001,3613.6,3613.5,0.4521]
[1762824897102,0.001,3613.6,3613.5,1.42698205]
[1762824897530,0.001,3613.6,3613.5,0.9271]
[1762824897728,0.001,3613.6,3613.5,0.95198205]
[1762824897933,0.001,3613.6,3613.5,0.4521]
[1762824898115,0.001,3613.6,3613.3,0.691]
[1762824899243,2.76749906,3613.4,3612.9,0.49988205]
[1762824899427,2.76749906,3613.4,3612.8,0.49988205]
[1762824899613,2.76749906,3613.4,3612.7,0.691]
[1762824899614,2.76793622,3612.8,3612.7,0.691]
[1762824900023,2.66793622,3612.8,3612.7,0.691]
[1762824900320,2.76801284,3612.7,3612.0,0.63298205]
[1762824900526,3.32108759,3613.4,3612.6,0.4587]
[1762824900725,0.405504,3613.5,3612.1,1.734712]
[1762824901037,2.76787047,3612.9,3612.5,0.49988205]
[1762824901243,0.001,3613.6,3612.0,3.56735541]
[1762824901244,2.76846815,3612.2,3612.0,0.1331]
[1762824901564,2.76854928,3612.0,3611.9,0.691]
[1762824901765,2.7690057,3611.5,3611.3,0.477]
[1762824902060,2.76847263,3612.1,3611.3,0.002]
[1762824902226,0.691,3612.4,3611.3,0.50188205]
[1762824902770,2.76844502,3612.2,3611.3,0.50188205]
[1762824902951,2.76900924,3611.4,3611.3,0.002]
[1762824904251,4.7189714,3612.4,3611.3,0.002]
[1762824904252,0.3459445,3612.2,3611.3,0.4607]
[1762824904462,0.864404,3612.2,3611.3,0.002]
[1762824904763,2.76900924,3611.4,3611.3,0.002]
[1762824905685,4.25399639,3611.4,3611.3,0.002]
[1762824906127,3.79509639,3611.4,3611.3,0.002]
[1762824906326,4.25399639,3611.4,3611.3,0.002]
[1762824906933,4.65950039,3611.4,3611.3,0.002]
[1762824907326,5.91921239,3611.4,3611.3,0.002]
[1762824907548,6.51309601,3611.4,3611.3,0.002]
[1762824908074,2.77039007,3609.6,3609.1,0.01]
[1762824908280,3.07109007,3609.6,3609.1,0.01]